Cogmind - Beta 11 @@@ ROGUE MODE // 2022.04.16 @ 23:51:41 Player: RNGesus Result: Destroyed by 8R-AWN with 8R-AWN's Boregun Performance ------------- Evolutions (0) 0 Regions Visited (3) 600 Robots Destroyed (16) 80 Value Destroyed (285) 285 Prototype IDs (27) 540 Alien Tech Used (0) 0 Bonus (-2360) -2360 TOTAL SCORE: -855 Bonus ------- Follower Combat Kills 33 Aligned with FarCom 300 Friendly Fire -2693 Cogmind --------- Core Integrity 0/250 Matter 300/300 Energy 150/150 System Corruption 0% Temperature Cool (0) Movement Treading (240) Ox1 Location -10/Exiles Parts ------- > --- POWER (1) -------- Light Angular Momentum Engine > --- PROPULSION (2) --- Light Treads Light Treads > --- UTILITY (2) ------ High-capacity Storage Unit Weapon Shielding > --- WEAPON (2) ------- Heavy Assault Rifle Heavy Assault Rifle > --- INVENTORY (20) --- Light Treads Light Treads Compact Wheel Cooling System Hacking Suite Beamcaster YI-UF0's Doublenader Plasma Cutter Peak State ------------ > --- POWER ------------ Improved Deuterium Engine > --- PROPULSION ------- Light Treads Light Treads > --- UTILITY ---------- Large Storage Unit YI-UF0's Bottomless Matter Pit > --- WEAPON ----------- Beamcaster Heavy Assault Rifle > --- INVENTORY -------- Light Angular Momentum Engine Light Treads Light Treads Light Treads Compact Wheel Cooling System Weapon Shielding Weapon Shielding Light Armor Plating Hacking Suite Heavy Assault Rifle Heavy Assault Rifle Heavy Assault Rifle YI-UF0's Doublenader Plasma Cutter [Rating: 25] Favorites ----------- Power Ion Engine Engine Ion Engine Propulsion Light Treads Treads Light Treads Utility Large Storage Unit Storage Large Storage Unit Protection Light Armor Plating Weapon Heavy Assault Rifle Energy Gun Beamcaster Ballistic Gun Heavy Assault Rifle Launcher YI-UF0's Doublenader Special Weapon Plasma Cutter Build | -11 -10 -10 -10 ------- Run | Scr Mat Min Exi Slots Evolved . | . . . . Power . | . . . . Propulsion . | . . . . Utility . | . . . . Weapon . | . . . . Parts Attached 32 | 7 4 11 10 Power 3 | 1 . 1 1 Engine 3 | 1 . 1 1 Core . | . . . . Reactor . | . . . . Propulsion 4 | 2 1 . 1 Treads 4 | 2 1 . 1 Leg . | . . . . Wheel . | . . . . Hover . | . . . . Flight . | . . . . Utility 10 | 1 2 4 3 Device . | . . . . Storage 4 | 1 1 1 1 Processor . | . . . . Hackware . | . . . . Protection 6 | . 1 3 2 Artifact . | . . . . Weapon 15 | 3 1 6 5 Energy Gun 6 | 3 . 3 . Energy Cannon . | . . . . Ballistic Gun 6 | . 1 1 4 Ballistic Cannon . | . . . . Launcher 2 | . . 1 1 Special Weapon 1 | . . 1 . Impact Weapon . | . . . . Slashing Weapon . | . . . . Piercing Weapon . | . . . . Special Melee Weapon . | . . . . Unidentified Prototypes 2 | . . 2 . Parts Lost 6 | . . . 6 Power 1 | . . . 1 Propulsion 1 | . . . 1 Utility 2 | . . . 2 Weapon 2 | . . . 2 Highest Loss Streak 6 | . . . 6 To Critical Strikes 2 | . . . 2 Average Slot Usage (%) 95 | . 86 100 99 Engine 13 | . 14 14 13 Treads 28 | . 28 28 28 Storage 14 | . 14 14 14 Protection 10 | . 1 13 14 Energy Gun 16 | . 27 12 12 Ballistic Gun 10 | . . 14 15 Naked Turns . | . . . . Heaviest Build 61 | 14 30 41 61 Greatest Support 40 | 40 40 40 40 Greatest Overweight (x) 4 | 4 . 1 1 Average Overweight (x) . | . . . 1 Largest Inventory Capacity 20 | 8 15 15 20 Average Capacity 15 | 7 13 15 17 Most Carried 15 | 3 15 15 15 Average Carried 13 | 1 10 14 14 Final Capacity 20 | 8 15 15 20 Final Carried 15 | 3 15 15 8 Class Distribution -------------------- 100% | Mutant Dominant Class ---------------- Mutant | -10/Materials Mutant | -10/Mines Mutant | -10/Exiles Resources | -11 -10 -10 -10 ----------- Run | Scr Mat Min Exi Matter Collected 1277 | 270 15 194 798 Remotely . | . . . . Salvage Created 635 | . 421 177 37 Parts 32 | . 23 9 . Haulers Intercepted 1 | . 1 . . Recyclers Shooed 1 | . 1 . . Parts Field Recycled . | . . . . Retrieved Matter . | . . . . Parts Self-Destructed . | . . . . Prevented . | . . . . Kills | -11 -10 -10 -10 ------- Run | Scr Mat Min Exi Combat Hostiles Destroyed 12 | . 9 1 2 Guns 11 | . 9 1 1 AOE 1 | . . . 1 Classes Destroyed 8 | . 6 1 1 Worker 1 | . 1 . . Hauler 1 | . 1 . . Recycler 1 | . 1 . . Operator 2 | . 2 . . Swarmer 5 | . 5 . . Grunt 4 | . 4 . . Sentry 1 | . . 1 . Assembled 7 | . . . 7 Best Kill Streak 3 | . 3 1 2 Combat Bots Only 3 | . 3 1 2 Max Kills in Single Turn 5 | . 1 1 5 Gunslinging . | . . . . Exploded 1 | . . . 1 Melee . | . . . . Uniques/NPCs Destroyed 1 | . . 1 . YI-UF0 (-10/Mines) Combat | -11 -10 -10 -10 -------- Run | Scr Mat Min Exi Damage Taken 1414 | . 330 75 1009 Core 260 | . 61 14 185 Absorbed by Shields . | . . . . Redirected to Shielding 75 | . . . 75 Core Remaining (%) 100 | 100 . . . Volleys Fired 104 | . 42 29 33 Largest 2 | . 2 2 2 Hottest 93 | . 90 75 93 Shots Fired 178 | . 83 31 64 Gun 149 | . 83 5 61 Cannon . | . . . . Launcher 3 | . . . 3 Special 26 | . . 26 . Kinetic 63 | . . 2 61 Thermal 112 | . 83 29 . Explosive 3 | . . . 3 Electromagnetic . | . . . . Robot Hit Streak 12 | . 7 9 12 Robot Miss Streak 5 | . 2 5 4 Penetration Max . | . . . . Secondary Targets 1 | . 1 . . Max Gunslinging Chain 1 | . 1 . . Shots Hit Robots 119 | . 53 22 44 Core Hits 57 | . 25 8 24 Critical Kills 1 | . . . 1 Critical Parts Destroyed . | . . . . Critical Strikes 7 | . 4 2 1 Burn 4 | . 4 . . Destroy 1 | . . . 1 Sever 2 | . . 2 . Melee Attacks . | . . . . Impact . | . . . . Slashing . | . . . . Piercing . | . . . . Sneak Attacks . | . . . . Combat Hostiles . | . . . . Follow-up Attacks . | . . . . Damage Inflicted 1878 | . 651 249 978 Guns 1332 | . 650 42 640 Cannons . | . . . . Explosions 338 | . . . 338 Melee . | . . . . Ramming 1 | . 1 . . Kinetic 670 | . . 30 640 Thermal 869 | . 650 219 . Explosive 338 | . . . 338 Electromagnetic . | . . . . Impact . | . . . . Slashing . | . . . . Piercing . | . . . . Highest Corruption . | . . . . Average Corruption . | . . . . Corruption Purged . | . . . . Corruption Blocked . | . . . . Overload Shots . | . . . . Overflow Damage 7 | . . 7 . Projectiles 7 | . . 7 . Explosions . | . . . . Melee . | . . . . Knockbacks . | . . . . Impact . | . . . . Kinetic . | . . . . Secondary . | . . . . Self-Inflicted Damage 7 | . . . 7 Shots 1 | . . . 1 Rammed 2 | . 1 1 . Targets Rammed 2 | . 1 1 . Kicked . | . . . . Crushed . | . . . . Highest Temperature 240 | . 240 40 148 Average Temperature 78 | . 75 24 99 Received Heat Transfer 158 | . 93 45 20 Siege Activations . | . . . . Robots Corrupted . | . . . . Combat Hostiles . | . . . . Parts Fried . | . . . . Impact Corruptions . | . . . . Robots Melted . | . . . . Combat Hostiles . | . . . . Parts Melted 6 | . 6 . . Heat Transferred 2673 | . 1945 728 . Parts Sabotaged . | . . . . Parts Stolen . | . . . . Parts Stripped . | . . . . Power Chain Reactions . | . . . . Missiles Intercepted . | . . . . Alert | -11 -10 -10 -10 ------- Run | Scr Mat Min Exi Peak Influence 193 | . 193 38 . Initial 2 | . . 2 . Average 27 | . 57 8 . Maximum Alert Level . | . . . . Low Security (%) 100 | 100 100 100 . Level 1 . | . . . . Level 2 . | . . . . Level 3 . | . . . . Level 4 . | . . . . Level 5 . | . . . . High Security . | . . . . Max Security . | . . . . Squads Dispatched 2 | . 2 . . Investigation . | . . . . Extermination . | . . . . Reinforcement 2 | . 2 . . Assault . | . . . . Garrison . | . . . . Intercept . | . . . . Searches Triggered . | . . . . Construction Impeded . | . . . . Haulers Reinforced . | . . . . Active Scanning Responses . | . . . . Cargo Convoy Interrupts . | . . . . Stealth | -11 -10 -10 -10 --------- Run | Scr Mat Min Exi Distress Signals 4 | . 4 . . Communications Jammed . | . . . . Distress Signals . | . . . . Times Spotted 24 | . 19 2 3 Peak Tracking Total 4 | . 4 2 4 Tactical Retreats 1 | . 1 . . Traps | -11 -10 -10 -10 ------- Run | Scr Mat Min Exi Traps Triggered . | . . . . Indirectly . | . . . . Trap Hack Attempts . | . . . . Triggered . | . . . . Disarmed . | . . . . Reprogrammed . | . . . . Reused . | . . . . Traps Extracted . | . . . . Installed . | . . . . Triggered . | . . . . Machines | -11 -10 -10 -10 ---------- Run | Scr Mat Min Exi Machines Disabled 4 | . . 1 3 Max in Single Turn 2 | . . . 2 Machines Sabotaged . | . . . . Garrisons Compromised . | . . . . Overloaded Fab Kills . | . . . . Hacking | -11 -10 -10 -10 --------- Run | Scr Mat Min Exi Machines Accessed 5 | . 3 . 2 Terminals 3 | . 3 . . Fabricators . | . . . . Repair Stations . | . . . . Recycling Units . | . . . . Scanalyzers . | . . . . Garrison Access . | . . . . Total Hacks 20 | . 12 . 8 Successful 15 | . 7 . 8 Failed 4 | . 4 . . Catastrophic . | . . . . Database Lockouts 1 | . 1 . . Manual 10 | . 9 . 1 Terminals 12 | . 12 . . Fabricators . | . . . . Repair Stations . | . . . . Recycling Units . | . . . . Scanalyzers . | . . . . Garrison Access . | . . . . Terminal Hacks 15 | . 7 . 8 Record 7 | . . . 7 Part Schematic 1 | . 1 . . Robot Analysis 3 | . 3 . . Prototype ID Bank 1 | . 1 . . Registered Components 1 | . 1 . . Zone Layout 1 | . 1 . . EX-Prototype ID Bank 1 | . . . 1 Fabricator Hacks . | . . . . Repair Station Hacks . | . . . . Recycling Unit Hacks . | . . . . Scanalyzer . | . . . . Garrison Access Hacks . | . . . . Unauthorized Hacks . | . . . . Terminals . | . . . . Fabricators . | . . . . Repair Stations . | . . . . Recycling Units . | . . . . Scanalyzers . | . . . . Garrison Access . | . . . . Data Cores Recovered . | . . . . Used . | . . . . Hacking Detections 2 | . 2 . . Full Trace Events . | . . . . Feedback Events . | . . . . Feedback Blocked . | . . . . Robot Schematics Acquired . | . . . . Robots Built . | . . . . Authchips . | . . . . Time . | . . . . Total Robot Build Rating . | . . . . Part Schematics Acquired 1 | . 1 . . Parts Built . | . . . . Authchips . | . . . . Time . | . . . . Total Part Build Rating . | . . . . Parts Repaired . | . . . . Time . | . . . . Parts Recycled . | . . . . Recycled Matter . | . . . . Retrieved Matter . | . . . . Retrieved Components . | . . . . Parts Scanalyzed . | . . . . Part Schematics Acquired . | . . . . Parts Damaged . | . . . . Bothacking | -11 -10 -10 -10 ------------ Run | Scr Mat Min Exi Used RIF Installer . | . . . . Robots Hacked . | . . . . Non-combat . | . . . . Combat . | . . . . Robot Hacks Applied . | . . . . Relay Couplers Released . | . . . . Fabnet Peak Effective % . | . . . . Robots Rewired . | . . . . Allies Hacked . | . . . . Hacks Repelled . | . . . . Allies | -11 -10 -10 -10 -------- Run | Scr Mat Min Exi Total Allies 1 | . . 1 . Largest Group 1 | . . 1 . Highest-Rated Group 31 | . . 31 . Highest-Rated Ally 31 | . . 31 . Total Orders . | . . . . Ally Attacks 6 | . . 6 . Total Damage 63 | . . 63 . Kills 1 | . . 1 . Allies Corrupted . | . . . . Allies Melted . | . . . . Intel | -11 -10 -10 -10 ------- Run | Scr Mat Min Exi Robot Analysis Total 3 | . 3 . . Derelict Logs Recovered 2 | . . 2 . Drone Launches . | . . . . Drone Recoveries . | . . . . Exploration | -11 -10 -10 -10 ------------- Run | Scr Mat Min Exi Turns Passed 3834 | 95 1103 1613 1023 Spaces Moved 1792 | 53 581 781 377 Core 14 | 14 . . . Treads 1778 | 39 581 781 377 Legs . | . . . . Wheels . | . . . . Hover . | . . . . Flight . | . . . . Fastest Speed 50 | 50 160 160 240 Average Speed 189 | 158 160 189 240 Slowest Speed 250 | 250 160 240 240 Overloaded Moves . | . . . . Propulsion Burnouts . | . . . . Robots Hopped . | . . . . Cave-ins Triggered . | . . . . Exploration Rate (%) 65 | 4 88 99 69 Regions Visited 3 Branch Regions 2 Pre-discovered Areas 2 | . . 1 1 Known Exits Taken . | . . . . Unknown Exits Taken 3 | 1 1 1 . Scrap Searched 1 | . . 1 . Spaces Dug . | . . . . Terrain Destroyed 19 | . . . 19 Melee . | . . . . Projectile . | . . . . AOE 19 | . . . 19 Terrain Rammed . | . . . . Walls Destroyed . | . . . . Machines Disabled . | . . . . Actions | -11 -10 -10 -10 --------- Run | Scr Mat Min Exi Total 2031 | 61 677 859 434 Wait 42 | . 21 21 . Move 1789 | 52 580 780 377 Hop . | . . . . Pick Up 34 | 2 19 7 6 Fast Attach 12 | 6 3 3 . Attach 6 | . . . 6 Detach 1 | . 1 . . Swap 14 | 1 1 8 4 Drop 27 | . 9 10 8 Fire 104 | . 42 29 33 Melee . | . . . . Ram . | . . . . Kick . | . . . . Crush 2 | . 1 1 . Escape Stasis . | . . . . Rewire . | . . . . Trap . | . . . . Miscellaneous . | . . . . Route ------- -11/Scrapyard -10/Materials (discovered 4 exits: [*Mat x3] / [*Min]) -10/Mines (discovered 3 exits: [*Mat x2] / *Exi) -10/Exiles History --------- Turn | Location | Event 2 | -11/Scrapyard | Met Revision 17 40 | -11/Scrapyard | Discovered new exit (range 16) 96 | -11/Scrapyard | Entered Materials 302 | -10/Materials | Build established: Mutant 426 | -10/Materials | Discovered new exit (range 10) 576 | -10/Materials | Discovered new exit (range 14) 990 | -10/Materials | Discovered new exit (range 5) 1001 | -10/Materials | Central database locked down 1095 | -10/Materials | Discovered new exit (range 16) 1199 | -10/Materials | Entered Mines 1202 | -10/Mines | Received a Mining Laser from a helpful Derelict 1353 | -10/Mines | Discovered new exit (range 10) 1447 | -10/Mines | Received a Rocket Launcher from a helpful Derelict 1494 | -10/Mines | Learned location of Storage (-9) 1722 | -10/Mines | Deemed a non-threat by the Exiles lab entrance 1722 | -10/Mines | Discovered new exit (range 5) 1859 | -10/Mines | Learned Materials emergency access door positions 1903 | -10/Mines | YI-UF0 nonchalantly dropped a Grenade Launcher on the ground 2104 | -10/Mines | Destroyed YI-UF0 2114 | -10/Mines | Found Prototype Launcher 2118 | -10/Mines | Identified YI-UF0's Doublenader 2122 | -10/Mines | Found Prototype Storage 2129 | -10/Mines | Identified YI-UF0's Bottomless Matter Pit 2355 | -10/Mines | Discovered new exit (range 15) 2812 | -10/Mines | Entered Exiles 2977 | -10/Exiles | Met 8R-AWN 3016 | -10/Exiles | Met EX-HEX 3105 | -10/Exiles | Met EX-DEC 3239 | -10/Exiles | Learned location of Zion (-6) 3473 | -10/Exiles | Met EX-BIN 3507 | -10/Exiles | Aligned with FarCom system 3509 | -10/Exiles | Given EX-Vault access code 3565 | -10/Exiles | Opened EX-Vault 3629 | -10/Exiles | Warned to stay clear of 0b10 Research branches 3732 | -10/Exiles | Attacked by the Exiles 3771 | -10/Exiles | Core integrity fell below 50% 3819 | -10/Exiles | Core integrity fell below 20% 3835 | -10/Exiles | Destroyed by 8R-AWN with 8R-AWN's Boregun Last Messages --------------- 03810_ Penetrated by HV Slug. 03811_ Extracted 1 matter. 03814_ Extracted 10 matter. 03814_ The unstable cave ceiling collapses. 03814_ HV Slug penetrates Wall. 03814_ Penetrated by HV Slug. 03815_ Extracted 6 matter. 03818_ Penetrated by HV Slug. 03819_ The unstable cave ceiling collapses. 03821_ Extracted 6 matter. 03823_ Penetrated by HV Slug. 03824_ Extracted 6 matter. 03827_ HV Slug penetrates Wall. 03827_ Penetrated by HV Slug. 03830_ Extracted 10 matter. 03831_ Extracted 6 matter. 03831_ Penetrated by HV Slug. 03834_ Extracted 6 matter. 03835_ Wall collapses. 03835_ Penetrated by HV Slug. Map ----- +----------------------------------------------------+ | """#??????????????????????????????????? | | """#??????????????????????????????????? | | """#??????????????????????????????????? | | """#??????????????????????????????????? | | """#??????????????????????????????????? | | """"??????????????????????????????????? | | """#??????????????????????????????????? | | "X" """"??????????????????????????????????? | | """ #??????????????????????????????????? | | """""""""#??????????????????????????????????? | | ###########??????????????????????????????????? | | #????????????????????????????????????????????? | | #????????????????????????????????????????????? | | ##???????????????????????????????????????????? | | ##???####;####??????????????????????????????? | | #####"""" """"##???????????????????????????? | | " """ """"##??????????????????????????? | | "" " #??????????????????????????? | | " """#??????????????????????????? | | a"#???????????#####??????????? | | " "##?????????##" #??????????? | | "###???????#" #??????????? | | "" ""#??????##" ##?????????? | | #""" ##???### ###???????? | | #####""" ;##??# ######### | | ????##""" @;#?## #""""## | | ?????#"""" % ;## | | ????##"" g ## | | ?####"""" #### | | ##""" ""#?#"""""#### | | """ #"""##?#######??#### | | ######??????????????## | | ##????????????????????? | | ##?????????????????????? | | "" #??????????????????????? | | ##""" " " " % ##??????????????????????? | | ######""" "" # ##???????????????????????? | | #????###""""## ### ????????????????????????? | | ####???######???# ????????????????????????? | | "!#???????????????####????????????????????????? | | !#???????????????????????????????????????????? | | "#???????????????????????????????????????????? | | !""!"#???????????????????????????????????????????? | | ######???????????????????????????????????????????? | | ?????????????????????????????????????????????????? | | ?????????????????????????????????????????????????? | | ?????????????????????????????????????????????????? | | ?????????????????????????????????????????????????? | | ?????????????????????????????????????????????????? | | ?????????????????????????????????????????????????? | +----------------------------------------------------+ Best States ------------- Heat Dissipation 25 Energy Generation 18 Energy Capacity 290 Matter Stores 300 Matter Capacity 1800 Sight Range 16 Terrain Scan Density 10 Armor Coverage 150 Weapon Shielding 33 Evasion (%) 40 Recoil Reduction 2 Item Schematics ----------------- Huge Storage Unit | -10/Materials | Hacked Robot Schematics ------------------ None Fabricated ------------ Nothing Alien Tech Used ----------------- None Achievements -------------- None Challenges ------------ None Game ------ Seed HellfirePowerFalx Manual? 0 Play Time 00:17:59 Cumulative 337.7 hours Start 2022.04.16 @ 23:30:00 End 2022.04.16 @ 23:51:41 Sessions 1 Manual Loads 0 Difficulty Rogue Special Mode None Game No. 494 Rogue 494 Adventurer 0 Explorer 0 Win Type - Total 6 Types 4/0/1/1/0/0/0/0/0 Lore% 81 Gallery% 84 Achievement% 66 Wizard Run 0 Options --------- ASCII 0 Keyboard 1 Movement Numpad Keybinds 0 Fullscreen 2 Font 24/Smallcaps Map View 76x50 Tactical HUD 1 Map Filters NONE Filters NONE Steam 1 RUN: 5f0da517-5c32-4416-bee5-6727daf15c29